bitfinex/quotes_BTCUSD_20250927
["timestamp","ask_amount","ask_price","bid_price","bid_amount"]
[1758931200295,1.93424152,109930.0,109920.0,0.0287964]
[1758931200520,1.85409932,109930.0,109920.0,0.0287964]
[1758931200930,1.65343732,109930.0,109920.0,0.0287964]
[1758931202813,1.65343732,109930.0,109920.0,0.0237064]
[1758931203005,1.67052246,109930.0,109920.0,0.0237064]
[1758931203213,1.65625431,109930.0,109920.0,0.0237064]
[1758931205274,1.47934157,109930.0,109920.0,0.0237064]
[1758931205482,1.94647552,109930.0,109920.0,0.0237064]
[1758931205687,1.97385075,109930.0,109920.0,0.0237064]
[1758931206476,1.9881191,109930.0,109920.0,0.0237064]
[1758931208121,1.80395037,109930.0,109920.0,0.0237064]
[1758931212914,1.84717673,109930.0,109920.0,0.0237064]
[1758931213518,1.80395037,109930.0,109920.0,0.0237064]
[1758931214321,1.78968202,109930.0,109920.0,0.0237064]
[1758931215345,1.78968202,109930.0,109920.0,1e-08]
[1758931215947,1.7896694,109930.0,109920.0,1e-08]
[1758931217337,0.18196706,109910.0,109900.0,0.00217034]
[1758931217539,4.30055652,109910.0,109900.0,4.641e-05]
[1758931217758,4.30096652,109910.0,109900.0,0.00218641]
[1758931217954,4.3073679,109910.0,109900.0,4.641e-05]
[1758931218171,4.63719168,109910.0,109900.0,4.641e-05]
[1758931218383,4.35207168,109910.0,109900.0,4.641e-05]
[1758931218582,4.63719168,109910.0,109900.0,4.641e-05]
[1758931218739,4.63719168,109910.0,109900.0,0.00204641]
[1758931219366,4.63719168,109910.0,109900.0,4.641e-05]
[1758931219569,4.63819168,109910.0,109900.0,0.02272641]
[1758931220302,4.63818833,109910.0,109900.0,0.02272641]
[1758931221518,4.63818534,109910.0,109900.0,0.02272641]
[1758931221781,4.65245814,109910.0,109900.0,0.02272641]
[1758931224770,4.65244541,109910.0,109900.0,0.02272641]
[1758931225573,4.36732541,109910.0,109900.0,0.02272641]
[1758931225780,4.65244541,109910.0,109900.0,0.02272641]
[1758931225994,4.74115688,109910.0,109900.0,0.02272641]
[1758931229469,0.18200018,109890.0,109880.0,0.00308]
[1758931229700,2.63191518,109890.0,109880.0,0.00354449]
[1758931230002,2.65614518,109890.0,109880.0,0.00568449]
[1758931230164,2.69780356,109890.0,109880.0,0.00568449]
[1758931230345,2.63812056,109890.0,109880.0,0.00568449]
[1758931232087,2.62384693,109890.0,109880.0,0.00568449]
[1758931232296,2.62484693,109890.0,109880.0,0.00568449]
[1758931232753,2.63912056,109890.0,109880.0,0.00568449]
[1758931233374,2.63912056,109890.0,109880.0,0.00293904]
[1758931234830,2.63912056,109890.0,109880.0,0.00202937]
[1758931236835,2.63912056,109890.0,109880.0,0.00510937]
[1758931237055,2.62484693,109890.0,109880.0,0.00510937]
[1758931237677,2.58063335,109890.0,109880.0,0.00510937]
[1758931237884,2.86575335,109890.0,109880.0,0.00510937]
[1758931238104,2.86575335,109890.0,109880.0,0.02778937]
[1758931238950,2.81730935,109890.0,109880.0,0.02778937]
[1758931239781,2.80590335,109890.0,109880.0,0.02778937]
[1758931239990,2.82017698,109890.0,109880.0,0.02778937]
[1758931240400,2.82657252,109890.0,109880.0,0.02778937]
[1758931240811,2.54145252,109890.0,109880.0,0.02778937]
[1758931241025,2.51525852,109890.0,109880.0,0.02778937]
[1758931242435,2.42734452,109890.0,109880.0,0.02778937]
[1758931242644,2.71456452,109890.0,109880.0,0.02268]
[1758931242847,2.7230945,109890.0,109880.0,0.02268]
[1758931243185,2.4379745,109890.0,109880.0,0.02268]
[1758931243387,2.42370087,109890.0,109880.0,0.0248]
[1758931243592,2.70882087,109890.0,109880.0,0.02804]
[1758931243815,1.92163787,109890.0,109880.0,0.02804]
[1758931244334,1.63651787,109890.0,109880.0,0.02804]
[1758931244568,1.92163787,109890.0,109880.0,0.02804]
[1758931245230,1.63651787,109890.0,109880.0,0.02804]
[1758931245443,1.92163787,109890.0,109880.0,0.02804]
[1758931246139,1.63651787,109890.0,109880.0,0.02804]
[1758931246347,2.26164399,109890.0,109880.0,0.02804]
[1758931246784,2.27801775,109890.0,109880.0,0.02804]
[1758931247956,2.26374399,109890.0,109880.0,0.02804]
[1758931248755,2.26374399,109890.0,109880.0,0.02797391]
[1758931249325,2.28083278,109890.0,109880.0,0.02797391]
[1758931250137,2.26374399,109890.0,109880.0,0.02473391]
[1758931250337,2.28083475,109890.0,109880.0,0.02473391]
[1758931250735,2.29510851,109890.0,109880.0,0.02473391]
[1758931252875,2.29510851,109890.0,109880.0,0.02382424]
[1758931255151,2.29510851,109890.0,109880.0,0.02170424]
[1758931255352,2.2951122,109890.0,109880.0,0.02170424]
[1758931255862,2.2951122,109890.0,109880.0,0.02382424]
[1758931256498,2.2951122,109890.0,109880.0,0.02170424]
[1758931256637,2.0099922,109890.0,109880.0,0.02382424]
[1758931257976,2.00219186,109890.0,109880.0,0.02382424]
[1758931258152,1.98509741,109890.0,109880.0,0.02382424]
[1758931258357,2.01248215,109890.0,109880.0,0.02382424]
[1758931258994,1.81592756,109890.0,109880.0,0.02382424]
[1758931259404,1.99792774,109890.0,109880.0,0.02382424]
[1758931260241,1.99792774,109890.0,109880.0,0.02291424]
[1758931260660,2.02186774,109890.0,109880.0,0.02291424]
[1758931261127,2.02186774,109890.0,109880.0,0.01127027]
[1758931265851,2.30694774,109890.0,109880.0,0.01127027]
[1758931266289,2.31015774,109890.0,109880.0,0.01127027]
[1758931266452,2.30694774,109890.0,109880.0,0.01127027]
[1758931267126,2.31013774,109890.0,109880.0,0.01127027]
[1758931267896,2.32723463,109890.0,109880.0,0.01127027]
[1758931268424,2.31013774,109890.0,109880.0,0.01127027]
[1758931270038,2.32723461,109890.0,109880.0,0.01127027]
[1758931271037,2.32723461,109890.0,109880.0,0.01033353]
[1758931272275,2.31723461,109890.0,109880.0,0.01033353]
[1758931275829,2.03215461,109890.0,109880.0,0.01033353]
[1758931275954,2.31719461,109890.0,109880.0,0.01033353]
[1758931277102,2.03215461,109890.0,109880.0,0.01033353]
[1758931277308,2.31400461,109890.0,109880.0,0.01033353]
[1758931277709,2.14442314,109890.0,109880.0,0.01033353]
[1758931278654,1.85938314,109890.0,109880.0,0.01133169]
[1758931278932,2.14442314,109890.0,109880.0,0.01133169]
[1758931279287,2.14442314,109890.0,109880.0,0.00924169]
[1758931280292,2.14752314,109890.0,109880.0,0.00924169]
[1758931283440,2.14751245,109890.0,109880.0,0.00924169]
[1758931286996,2.14441245,109890.0,109880.0,0.00924169]
[1758931287580,1.85937245,109890.0,109880.0,0.01133169]
[1758931287778,2.14441245,109890.0,109880.0,0.01133169]
[1758931288951,2.14441245,109890.0,109880.0,0.01042169]
[1758931291210,1.9820566,109890.0,109880.0,0.01042169]
[1758931292321,1.98205808,109890.0,109880.0,0.01042169]
[1758931293109,1.69701808,109890.0,109880.0,0.01042169]
[1758931293306,1.97991808,109890.0,109880.0,0.01353169]
[1758931293884,1.98189808,109890.0,109880.0,0.01353169]
[1758931294068,1.69689808,109890.0,109880.0,0.01353169]
[1758931294277,1.98189808,109890.0,109880.0,0.01353169]
[1758931295836,1.98189808,109890.0,109880.0,0.01042169]
[1758931297007,1.98189808,109890.0,109880.0,0.00951169]
[1758931298623,1.99189808,109890.0,109880.0,0.00951169]
[1758931300815,1.70491808,109890.0,109880.0,0.00951169]
[1758931301019,1.98991808,109890.0,109880.0,0.01272169]
[1758931301478,1.99202808,109890.0,109880.0,0.01272169]
[1758931301635,1.99202808,109890.0,109880.0,0.00951169]
[1758931303077,1.99202808,109890.0,109880.0,0.00742169]
[1758931303286,1.99499808,109890.0,109880.0,0.00742169]
[1758931306536,1.99202808,109890.0,109880.0,0.00742169]
[1758931306730,1.99202808,109890.0,109880.0,0.00651169]
[1758931310766,1.70702808,109890.0,109880.0,0.00651169]
[1758931310925,1.70702808,109890.0,109880.0,0.01170169]
[1758931310926,1.98987808,109890.0,109880.0,0.01170169]
[1758931311558,1.99198808,109890.0,109880.0,0.01170169]
[1758931313757,1.99198808,109890.0,109880.0,0.00849169]
[1758931315186,1.99198808,109890.0,109880.0,0.01072327]
[1758931315591,2.00053708,109890.0,109880.0,0.01072327]
[1758931316819,2.00053708,109890.0,109880.0,0.00751327]
[1758931318405,1.82602842,109890.0,109880.0,0.00751327]
[1758931322003,1.82602842,109890.0,109880.0,0.00553327]
[1758931322004,1.82899842,109890.0,109880.0,0.00553327]
[1758931324950,1.82899842,109890.0,109880.0,0.00385533]
[1758931336541,1.82602842,109890.0,109880.0,0.00385533]
[1758931338537,1.82603711,109890.0,109880.0,0.00385533]
[1758931338988,1.82603711,109890.0,109880.0,0.00599533]
[1758931339549,1.82603711,109890.0,109880.0,0.00385533]
[1758931343141,1.80894076,109890.0,109880.0,0.00385533]
[1758931343356,1.82603851,109890.0,109880.0,0.00385533]
[1758931343531,1.82603866,109890.0,109880.0,0.00385533]
[1758931344877,1.62344062,109890.0,109880.0,0.00385533]
[1758931349668,1.33848062,109890.0,109880.0,0.00385533]
[1758931349888,1.62328062,109890.0,109880.0,0.00385533]
[1758931350565,1.33848062,109890.0,109880.0,0.00599533]
[1758931350734,1.62328062,109890.0,109880.0,0.00599533]
[1758931351547,1.62329116,109890.0,109880.0,0.00599533]
[1758931354620,1.62329116,109890.0,109880.0,0.00385533]
[1758931355950,1.623293,109890.0,109880.0,0.00385533]
[1758931357622,1.45595955,109890.0,109880.0,0.00385533]
[1758931364305,1.2428689,109890.0,109880.0,0.00385533]
[1758931364628,1.2458889,109890.0,109880.0,0.00385533]
[1758931364843,1.33460037,109890.0,109880.0,0.00385533]
[1758931365470,1.2458889,109890.0,109880.0,0.00385533]
[1758931367660,0.18203331,109870.0,109860.0,0.00307]
[1758931367877,3.23345825,109870.0,109860.0,0.00311642]
[1758931368087,3.23546825,109870.0,109860.0,0.00522642]
[1758931368637,2.22808525,109870.0,109860.0,0.00522642]
[1758931368845,2.21767207,109870.0,109860.0,0.00522642]
[1758931369083,2.19202332,109870.0,109860.0,0.00522642]
[1758931369291,1.91000732,109870.0,109860.0,0.00622642]
[1758931369462,1.83420032,109870.0,109860.0,0.00622642]
[1758931369647,1.85128402,109870.0,109860.0,0.00622642]
[1758931369854,1.85329402,109870.0,109860.0,0.00622642]
[1758931370217,1.85128402,109870.0,109860.0,0.00822642]
[1758931370581,1.86555998,109870.0,109860.0,0.00822642]
[1758931370781,1.86555998,109870.0,109860.0,0.00722642]
[1758931370993,1.86555998,109870.0,109860.0,0.00522642]
[1758931371235,1.86955998,109870.0,109860.0,0.00522642]
[1758931371392,1.86555998,109870.0,109860.0,0.00522642]
[1758931371781,1.86955998,109870.0,109860.0,0.00522642]
[1758931372544,1.87156998,109870.0,109860.0,0.00522642]
[1758931373082,1.86515779,109870.0,109860.0,0.00522642]
[1758931373303,1.86514925,109870.0,109860.0,0.00522642]
[1758931374311,1.85087329,109870.0,109860.0,0.00522642]
[1758931376077,1.84886329,109870.0,109860.0,0.00522642]
[1758931377594,1.86313925,109870.0,109860.0,0.00522642]
[1758931380183,1.86514925,109870.0,109860.0,0.00215642]
[1758931380397,1.86514925,109870.0,109860.0,0.00522642]
[1758931380598,1.82564825,109870.0,109860.0,0.00522642]
[1758931385498,1.82765825,109870.0,109860.0,0.00522642]
[1758931385827,1.82765825,109870.0,109860.0,0.00215642]
[1758931386121,2.11481825,109870.0,109860.0,4.642e-05]
[1758931386325,2.13277641,109870.0,109860.0,4.642e-05]
[1758931387830,2.47277641,109870.0,109860.0,4.642e-05]
[1758931388877,2.49147658,109870.0,109860.0,4.642e-05]
[1758931389221,2.47277579,109870.0,109860.0,4.642e-05]
[1758931392373,2.18561579,109870.0,109860.0,4.642e-05]
[1758931392573,2.47281579,109870.0,109860.0,4.642e-05]
[1758931394128,2.18561579,109870.0,109860.0,4.642e-05]
[1758931394333,2.18259579,109870.0,109860.0,4.642e-05]
[1758931394502,2.47280579,109870.0,109860.0,4.642e-05]
[1758931398039,2.47281233,109870.0,109860.0,4.642e-05]
[1758931402188,2.47282062,109870.0,109860.0,4.642e-05]
[1758931404522,2.29078731,109870.0,109860.0,4.642e-05]
[1758931404923,2.47282062,109870.0,109860.0,4.642e-05]
[1758931408893,2.18261062,109870.0,109860.0,4.642e-05]
[1758931409097,2.46973062,109870.0,109860.0,4.642e-05]
[1758931410543,2.47278062,109870.0,109860.0,4.642e-05]
[1758931410996,2.47279791,109870.0,109860.0,4.642e-05]
[1758931411417,2.18567791,109870.0,109860.0,4.642e-05]
[1758931411620,2.46974791,109870.0,109860.0,0.00204642]
[1758931411831,2.46974791,109870.0,109860.0,4.642e-05]
[1758931412670,2.46978791,109870.0,109860.0,4.642e-05]
[1758931412872,2.46978791,109870.0,109860.0,0.00513642]
[1758931414818,2.46978791,109870.0,109860.0,0.00204642]
[1758931418985,2.47283791,109870.0,109860.0,4.642e-05]
[1758931420006,2.46978791,109870.0,109860.0,4.642e-05]
[1758931422190,2.46954672,109870.0,109860.0,4.642e-05]
[1758931425277,2.28822104,109870.0,109860.0,4.642e-05]
[1758931425483,2.31561293,109870.0,109860.0,4.642e-05]
[1758931425694,2.31863293,109870.0,109860.0,0.02469642]
[1758931426260,2.33899243,109870.0,109860.0,0.02469642]
[1758931427030,0.05240432,109870.0,109860.0,0.6243782]
[1758931427244,0.0201827,109880.0,109870.0,0.22127898]
[1758931427464,0.0201827,109880.0,109870.0,0.51121898]
[1758931427695,0.20641018,109890.0,109880.0,0.18200903]
[1758931427904,0.52200018,109890.0,109880.0,0.02973]
[1758931428327,0.18200018,109890.0,109880.0,0.31785]
[1758931428539,0.52200018,109890.0,109880.0,0.31785]
[1758931430273,0.52300018,109890.0,109880.0,0.34523062]
[1758931430489,0.52300018,109890.0,109880.0,0.05711062]
[1758931430704,0.54606762,109890.0,109880.0,0.05711062]
[1758931430909,0.54399762,109890.0,109880.0,0.34523062]
[1758931433524,0.54399762,109890.0,109880.0,0.05711062]
[1758931433724,0.54399762,109890.0,109880.0,0.34523062]
[1758931435450,0.54399762,109890.0,109880.0,0.05711062]
[1758931435685,0.54399762,109890.0,109880.0,0.34515062]
[1758931442730,0.62374736,109890.0,109880.0,0.02465]
[1758931442934,1.67156462,109890.0,109880.0,0.31253]
[1758931443562,1.67156462,109890.0,109880.0,0.02465]
[1758931443797,1.67156462,109890.0,109880.0,0.31253]
[1758931446980,1.68583839,109890.0,109880.0,0.31253]
[1758931448618,1.97371839,109890.0,109880.0,0.02465]
[1758931448784,1.9886176,109890.0,109880.0,0.02465]
[1758931451432,1.7007376,109890.0,109880.0,0.02465]
[1758931451648,1.9885776,109890.0,109880.0,0.02465]
[1758931454599,1.9885376,109890.0,109880.0,0.02465]
[1758931455006,1.7007376,109890.0,109880.0,0.02465]
[1758931455167,1.9885376,109890.0,109880.0,0.02465]
[1758931455565,1.7007376,109890.0,109880.0,0.02465]
[1758931455782,1.9885776,109890.0,109880.0,0.02465]
[1758931456762,1.7007376,109890.0,109880.0,0.02465]
[1758931456938,1.9885776,109890.0,109880.0,0.02465]
[1758931457156,1.70075109,109890.0,109880.0,0.02465]
[1758931457377,1.98855109,109890.0,109880.0,0.02465]
[1758931458943,1.98553109,109890.0,109880.0,0.02465]
[1758931460017,1.69773109,109890.0,109880.0,0.02465]
[1758931460227,1.98553109,109890.0,109880.0,0.02465]
[1758931461605,1.98555087,109890.0,109880.0,0.02465]
[1758931463013,1.69775087,109890.0,109880.0,0.02465]
[1758931463259,1.98551087,109890.0,109880.0,0.02465]
[1758931463477,1.98551087,109890.0,109880.0,0.39645679]
[1758931463478,0.03053098,109890.0,109880.0,0.39645679]
[1758931463733,0.02199744,109890.0,109880.0,0.37825512]
[1758931463956,0.02199744,109890.0,109880.0,0.56894674]
[1758931464530,0.20399762,109890.0,109880.0,0.56894674]
[1758931464734,0.20399762,109890.0,109880.0,0.38693]
[1758931465372,0.20399762,109890.0,109880.0,0.31809]
[1758931465531,0.20399762,109890.0,109880.0,0.41293]
[1758931465937,0.54399762,109890.0,109880.0,0.31809]
[1758931466164,0.001,109890.0,109880.0,0.7052819]
[1758931466377,0.02441,109900.0,109890.0,0.18200018]
[1758931466584,0.04458876,109900.0,109890.0,1.21117018]
[1758931466788,0.04458876,109900.0,109890.0,1.23597018]
[1758931466996,0.04458876,109900.0,109890.0,0.47221018]
[1758931467198,0.04458876,109900.0,109890.0,1.23597018]
[1758931467858,0.02441,109900.0,109890.0,1.23597018]
[1758931468267,0.18195162,109920.0,109900.0,0.21212058]
[1758931468467,0.52195162,109920.0,109910.0,0.47676706]
[1758931468850,0.52195162,109920.0,109910.0,0.49953706]
[1758931469053,0.34,109920.0,109910.0,0.49953706]
[1758931469452,0.34046418,109920.0,109910.0,0.49953706]
[1758931469694,0.54282366,109920.0,109910.0,0.49953706]
[1758931472057,0.54493366,109920.0,109910.0,0.31757]
[1758931472224,1.57804866,109920.0,109910.0,0.31436]
[1758931472680,1.57804866,109920.0,109910.0,0.31432]
[1758931473261,1.58111866,109920.0,109910.0,0.31229]
[1758931475200,1.57804866,109920.0,109910.0,0.31225]
[1758931475407,1.58111866,109920.0,109910.0,0.31225]
[1758931476581,1.42398466,109920.0,109910.0,0.31225]
[1758931476782,1.42091466,109920.0,109910.0,0.31225]
[1758931477025,1.39353566,109920.0,109910.0,0.31225]
[1758931478417,1.39353566,109920.0,109910.0,0.31428]
[1758931478612,1.20415966,109920.0,109910.0,0.31428]
[1758931480541,1.20415966,109920.0,109910.0,0.31193]
[1758931480762,1.20733966,109920.0,109910.0,0.31193]
[1758931481192,1.02725266,109920.0,109910.0,0.31189]
[1758931481395,0.74661066,109920.0,109910.0,0.31689]
[1758931481572,0.71057166,109920.0,109910.0,0.31689]
[1758931482596,0.71057166,109920.0,109910.0,0.57909]
[1758931485191,0.54282366,109920.0,109910.0,0.57909]
[1758931487793,0.20282366,109920.0,109910.0,0.57909]
[1758931490336,0.2113375,109920.0,109910.0,0.57909]
[1758931492868,0.02112575,109920.0,109910.0,0.57909]
[1758931493065,0.20307625,109920.0,109910.0,0.57909]
[1758931494455,0.20947638,109920.0,109910.0,0.57909]
[1758931496408,0.20947638,109920.0,109910.0,0.76105706]
[1758931496968,0.20947638,109920.0,109910.0,0.57909]
[1758931497386,0.18835063,109920.0,109910.0,0.57837]
[1758931499400,1.81814963,109920.0,109910.0,0.57333]
[1758931499888,1.81814963,109920.0,109910.0,0.57329]
[1758931500683,1.81814963,109920.0,109910.0,0.28497]
[1758931500886,1.8352379,109920.0,109910.0,0.02277]
[1758931501096,2.1752379,109920.0,109910.0,0.30561]
[1758931501317,2.1752379,109920.0,109910.0,0.02277]
[1758931501518,2.1752379,109920.0,109910.0,0.31105]
[1758931501766,2.21159885,109920.0,109910.0,0.02277]
[1758931501930,2.21159885,109920.0,109910.0,0.31101]
[1758931502362,2.21859885,109920.0,109910.0,0.31101]
[1758931502948,2.21859885,109920.0,109910.0,0.02277]
[1758931503159,2.21859885,109920.0,109910.0,0.29909]
[1758931503895,2.23286949,109920.0,109910.0,0.29909]
[1758931504104,2.21859885,109920.0,109910.0,0.02277]
[1758931504506,2.50679885,109920.0,109910.0,0.02277]
[1758931506985,2.52106976,109920.0,109910.0,0.02277]
[1758931507340,2.52094976,109920.0,109910.0,0.02277]
[1758931507955,2.23286976,109920.0,109910.0,0.02277]
[1758931508131,2.52090976,109920.0,109910.0,0.02277]
[1758931508497,2.50382149,109920.0,109910.0,0.02277]
[1758931511190,2.50382134,109920.0,109910.0,0.02277]
[1758931511523,2.59253281,109920.0,109910.0,0.02277]
[1758931511747,2.50382134,109920.0,109910.0,0.02277]
[1758931512618,2.50366134,109920.0,109910.0,0.02277]
[1758931514078,2.50366134,109920.0,109910.0,1e-08]
[1758931514273,0.18200018,109890.0,109880.0,0.43169838]
[1758931514489,1.02261718,109890.0,109880.0,0.72144838]
[1758931514691,1.04693718,109890.0,109880.0,0.72144838]
[1758931515100,1.04693718,109890.0,109880.0,0.62664838]
[1758931515311,1.04693718,109890.0,109880.0,0.72144838]
[1758931515462,1.04693718,109890.0,109880.0,0.64994]
[1758931515675,1.04693718,109890.0,109880.0,0.57014]
[1758931516009,1.04693718,109890.0,109880.0,0.66494]
[1758931516218,1.38693718,109890.0,109880.0,0.27934]
[1758931516427,1.38693718,109890.0,109880.0,0.56706]
[1758931516562,1.38693718,109890.0,109880.0,0.56806]
[1758931517544,1.38693718,109890.0,109880.0,0.55606]
[1758931517745,1.38693718,109890.0,109880.0,0.56206]
[1758931518517,0.67178018,109890.0,109880.0,0.56206]
[1758931518769,0.54632018,109890.0,109880.0,0.56206]
[1758931518920,0.68167718,109890.0,109880.0,0.56206]
[1758931519125,0.54632018,109890.0,109880.0,0.56206]
[1758931519367,0.69459218,109890.0,109880.0,0.56206]
[1758931519675,0.68357718,109890.0,109880.0,0.56206]
[1758931520448,0.54632018,109890.0,109880.0,0.56206]
[1758931533408,0.54839018,109890.0,109880.0,0.27434]
[1758931533603,0.54632018,109890.0,109880.0,0.56158]
[1758931551324,0.54839018,109890.0,109880.0,0.56158]
[1758931551656,0.54632018,109890.0,109880.0,0.56158]
[1758931553791,0.55486645,109890.0,109880.0,0.56158]
[1758931555134,0.54632018,109890.0,109880.0,0.56158]
[1758931555560,0.36432,109890.0,109880.0,0.56158]
[1758931555780,0.54839018,109890.0,109880.0,0.56158]
[1758931556199,0.55693696,109890.0,109880.0,0.56158]
[1758931557029,0.55693696,109890.0,109880.0,0.56122]
[1758931557477,0.54839018,109890.0,109880.0,0.56122]
[1758931561361,0.54839018,109890.0,109880.0,0.56098]
[1758931561563,0.54839018,109890.0,109880.0,0.27115]
[1758931561757,0.54839018,109890.0,109880.0,0.56092]
[1758931563163,0.55693797,109890.0,109880.0,0.56092]
[1758931563305,0.54839018,109890.0,109880.0,0.56092]
[1758931563505,0.54839018,109890.0,109880.0,0.58830222]
[1758931564715,0.18407018,109890.0,109880.0,0.58830222]
[1758931565124,0.18740684,109900.0,109880.0,0.61291222]
[1758931565324,0.18200018,109890.0,109880.0,0.32627222]
[1758931565551,0.18200018,109890.0,109880.0,0.70791222]
[1758931565945,0.18200018,109890.0,109880.0,0.70191222]
[1758931566150,0.18200018,109890.0,109880.0,0.31927222]
[1758931566347,0.18200018,109890.0,109880.0,0.60603222]
[1758931566581,0.19054804,109890.0,109880.0,0.60603222]
[1758931566924,0.19054804,109890.0,109880.0,0.31927222]
[1758931567144,0.19054804,109890.0,109880.0,0.61199222]
[1758931567348,0.19054804,109890.0,109880.0,0.61299222]
[1758931568394,0.18200018,109890.0,109880.0,0.61299222]
[1758931568611,0.19054808,109890.0,109880.0,0.61299222]
[1758931571319,0.53054808,109890.0,109880.0,0.32627222]
[1758931571543,0.53054808,109890.0,109880.0,0.70767222]
[1758931573221,0.49528757,109890.0,109880.0,0.70767222]
[1758931577128,0.49528757,109890.0,109880.0,0.61283222]
[1758931584295,0.49528757,109890.0,109880.0,0.32627222]
[1758931584516,0.49528757,109890.0,109880.0,0.61247222]
[1758931585117,0.50383541,109890.0,109880.0,0.61247222]
[1758931585569,0.50383541,109890.0,109880.0,0.32627222]
[1758931585771,2.44066841,109890.0,109880.0,0.60791222]
[1758931586482,2.44066841,109890.0,109880.0,0.32119222]
[1758931586712,2.44066841,109890.0,109880.0,0.58049]
[1758931586910,2.44066841,109890.0,109880.0,0.29381]
[1758931587110,2.44066841,109890.0,109880.0,0.58049]
[1758931587730,2.44066841,109890.0,109880.0,0.57449]
[1758931587926,2.44066841,109890.0,109880.0,0.57349]
[1758931591375,2.45494195,109890.0,109880.0,0.57349]
[1758931594397,2.44066841,109890.0,109880.0,0.57349]
[1758931597645,2.45494211,109890.0,109880.0,0.57349]
[1758931601884,2.45257211,109890.0,109880.0,0.57349]
[1758931606513,2.45494211,109890.0,109880.0,0.57349]
[1758931606877,2.45494211,109890.0,109880.0,0.28681]
[1758931607329,2.45494211,109890.0,109880.0,0.57301]
[1758931607715,2.45257211,109890.0,109880.0,0.28681]
[1758931607946,1.73150068,109890.0,109880.0,0.57516]
[1758931608154,1.66224768,109890.0,109880.0,0.57516]
[1758931608480,1.66224768,109890.0,109880.0,0.28896]
[1758931609167,1.66224768,109890.0,109880.0,0.57516]
[1758931609536,1.66224768,109890.0,109880.0,0.28896]
[1758931609725,1.66224768,109890.0,109880.0,0.57516]
[1758931612733,1.66865646,109890.0,109880.0,0.57516]
[1758931614901,1.66865387,109890.0,109880.0,0.57516]
[1758931619006,1.66865297,109890.0,109880.0,0.57516]
[1758931621271,1.66865297,109890.0,109880.0,0.57829]
[1758931621889,1.66865234,109890.0,109880.0,0.57829]
[1758931622347,1.66865234,109890.0,109880.0,0.57516]
[1758931623614,1.35536495,109890.0,109880.0,0.57516]
[1758931624028,1.35536495,109890.0,109880.0,0.28896]
[1758931624190,1.35536495,109890.0,109880.0,0.57516]
[1758931625533,1.35536495,109890.0,109880.0,0.28896]
[1758931625743,1.35536495,109890.0,109880.0,0.57301]
[1758931625744,1.35773495,109890.0,109880.0,0.57301]
[1758931626172,1.34919123,109890.0,109880.0,0.57301]
[1758931626394,1.35773437,109890.0,109880.0,0.57301]
[1758931627497,1.69773437,109890.0,109880.0,0.28681]
[1758931627669,2.0010204,109890.0,109880.0,0.28681]
[1758931628046,2.0010204,109890.0,109880.0,0.02461]
[1758931628654,2.0020204,109890.0,109880.0,0.02461]
[1758931629446,1.81147708,109890.0,109880.0,0.02461]
[1758931629685,2.00201976,109890.0,109880.0,0.02461]
[1758931630357,2.01401785,109890.0,109880.0,0.02461]
[1758931634393,2.01401774,109890.0,109880.0,0.02461]
[1758931636431,2.01401774,109890.0,109880.0,0.01961]
[1758931636846,2.03758774,109890.0,109880.0,0.01961]
[1758931637900,2.02331404,109890.0,109880.0,0.01961]
[1758931638864,2.02094404,109890.0,109880.0,0.01961]
[1758931639408,2.01899404,109890.0,109880.0,0.02469]
[1758931640819,2.03524829,109890.0,109880.0,0.02469]
[1758931641587,2.03326829,109890.0,109880.0,0.02469]
[1758931643068,1.74706829,109890.0,109880.0,0.02469]
[1758931643391,1.89443569,109890.0,109880.0,0.02469]
[1758931644149,1.89343569,109890.0,109880.0,0.02469]
[1758931644325,1.89443569,109890.0,109880.0,0.02469]
[1758931644495,1.88243569,109890.0,109880.0,0.02469]
[1758931644702,1.88843569,109890.0,109880.0,0.02469]
[1758931644926,1.87416144,109890.0,109880.0,0.02469]
[1758931645550,1.57087601,109890.0,109880.0,0.02469]
[1758931648293,1.58514984,109890.0,109880.0,0.02469]
[1758931651661,1.28624084,109890.0,109880.0,0.02469]
[1758931651883,1.28624084,109890.0,109880.0,0.28689]
[1758931652106,1.25885627,109890.0,109880.0,0.28689]
[1758931655320,1.25031377,109890.0,109880.0,0.28689]
[1758931655575,1.25885638,109890.0,109880.0,0.28689]
[1758931656560,1.07245438,109890.0,109880.0,0.28689]
[1758931658145,0.97298138,109890.0,109880.0,0.28689]
[1758931659537,0.92121938,109890.0,109880.0,0.28689]
[1758931659747,0.87389138,109890.0,109880.0,0.28689]
[1758931660844,0.53389138,109890.0,109880.0,0.28689]
[1758931662930,0.87389138,109890.0,109880.0,0.28689]
[1758931665747,0.87389138,109890.0,109880.0,0.57301]
[1758931668228,0.85569238,109890.0,109880.0,0.57301]
[1758931671062,0.84714977,109890.0,109880.0,0.57301]
[1758931671266,0.85569412,109890.0,109880.0,0.57301]
[1758931674835,0.63774694,109890.0,109880.0,0.57301]
[1758931675045,0.81974712,109890.0,109880.0,0.57301]
[1758931678108,0.81974712,109890.0,109880.0,0.28689]
[1758931678287,0.81974712,109890.0,109880.0,0.57297]
[1758931678886,0.82172712,109890.0,109880.0,0.57297]
[1758931682085,0.05979494,109890.0,109880.0,0.75498674]
[1758931682303,0.03057,109890.0,109880.0,0.75498674]
[1758931682489,0.03057,109890.0,109880.0,0.87720691]
[1758931682851,0.02957,109890.0,109880.0,0.87720691]
[1758931683051,0.02357,109890.0,109880.0,0.87720691]
[1758931683466,0.02357,109890.0,109880.0,0.88320691]
[1758931685951,0.02357,109890.0,109880.0,0.88420691]
[1758931693663,0.02357,109890.0,109880.0,0.91435881]
[1758931706598,0.02357,109890.0,109880.0,0.91335881]
[1758931706791,0.02357,109890.0,109880.0,0.90735881]
[1758931707002,0.02357,109890.0,109880.0,0.90835881]
[1758931707202,0.02357,109890.0,109880.0,0.91435881]
[1758931707403,0.02357,109890.0,109880.0,0.91335881]
[1758931707790,0.02357,109890.0,109880.0,0.91735881]
[1758931708383,0.02357,109890.0,109880.0,0.91135881]
[1758931708774,0.02357,109890.0,109880.0,0.92435881]
[1758931711954,0.02357,109890.0,109880.0,0.97435881]
[1758931714552,0.02357,109890.0,109880.0,0.59343881]
[1758931714965,0.02357,109890.0,109880.0,1.35335881]
[1758931718476,0.02357,109890.0,109880.0,0.59343881]
[1758931718676,0.02357,109890.0,109880.0,1.35335881]
[1758931720322,0.02357,109890.0,109880.0,1.79915881]
[1758931720736,0.02357,109890.0,109880.0,1.03923881]
[1758931720929,0.02357,109890.0,109880.0,1.79907881]
[1758931722356,0.02357,109890.0,109880.0,1.03923881]
[1758931722554,0.02357,109890.0,109880.0,1.79907881]
[1758931729354,0.02357,109890.0,109880.0,1.03923881]
[1758931729568,0.02357,109890.0,109880.0,1.79903881]
[1758931732926,0.02357,109890.0,109880.0,1.32499881]
[1758931733231,0.02357,109890.0,109880.0,1.79903881]
[1758931741922,0.02357,109890.0,109880.0,1.03923881]